lending/lending_fUSD_20240120
["ID","MTS","AMOUNT","RATE_DAILY","PERIOD"]
[312296823,1705761043931,-203.12390135,0.00028,2]
[312296824,1705761043941,-689.05942203,0.00028,2]
[312296825,1705761043951,-2168.85105593,0.00028,2]
[312296826,1705761043962,-1100.36,0.00028015,2]
[312296827,1705761043973,-6051.07,0.0002803,2]
[312296828,1705761043982,-181.74698734,0.00028186,2]
[312296829,1705761043992,-6051.07,0.00028189,2]
[312296830,1705761044002,-167.0,0.00028307,2]
[312296831,1705761044012,-209.0,0.00028311,14]
[312296832,1705761044022,-6051.07,0.00028347,2]
[312296833,1705761044031,-181.74698734,0.00028426,2]
[312296834,1705761044041,-1217.74,0.00028479,2]
[312296835,1705761044050,-200.0,0.00028493,5]
[312296836,1705761044060,-6051.07,0.00028505,2]
[312296837,1705761044069,-317.24,0.00028572,2]
[312296838,1705761044079,-6051.07,0.00028664,2]
[312296839,1705761044088,-181.74698734,0.00028666,2]
[312296840,1705761044098,-155.0,0.00028767,2]
[312296841,1705761044107,-1996.46,0.00028767,2]
[312296842,1705761044117,-437.0,0.000288,2]
[312296843,1705761044126,-345.0,0.000288,2]
[312296844,1705761044136,-1000.0,0.000288,2]
[312296845,1705761044145,-6051.07,0.00028822,2]
[312296846,1705761044154,-181.74698734,0.00028906,2]
[312296847,1705761044164,-153.0,0.00029,2]
[312296848,1705761044173,-155.60154355,0.00029,2]
[312296849,1705761044183,-450.0,0.00029,3]
[312296850,1705761044193,-2736.98342974,0.00029,2]
[312296851,1705761044202,-200.0,0.00029041,5]
[312296852,1705761044211,-1384.284,0.00029073,2]
[312296853,1705761044220,-150.0,0.00029073,2]
[312296854,1705761044230,-221.545,0.00029073,2]
[312296855,1705761044240,-498.331,0.00029073,2]
[312296856,1705761044250,-1855.0,0.00029073,2]
[312296857,1705761044261,-944.0,0.00029073,2]
[312296858,1705761044270,-836.0,0.00029073,2]
[312296859,1705761044279,-181.74698734,0.00029147,2]
[312296860,1705761044289,-9133.48150197,0.00029189,2]
[312296861,1705761044299,-790.08,0.0002935,2]
[312296862,1705761044308,-181.74698734,0.00029387,2]
[312296863,1705761044318,-441.48,0.00029416,2]
[312296864,1705761044328,-155.0,0.000295,3]
[312296865,1705761044337,-211.18396178,0.00029589,5]
[312296866,1705761044347,-181.74698734,0.00029627,2]
[312296867,1705761044356,-1100.36,0.00029658,2]
[312296868,1705761044365,-209.92,0.0002969,2]
[312296869,1705761044374,-493.68361252,0.00029699,2]
[312296870,1705761044384,-175.56419383,0.000298,2]
[312296871,1705761044393,-731.13762758,0.000298,2]
[312296872,1705761044403,-500.0,0.00029845,3]
[312296873,1705761044412,-500.0,0.00029854,3]
[312296874,1705761044422,-500.0,0.00029863,3]
[312296875,1705761044432,-181.74698734,0.00029867,2]
[312296876,1705761044441,-154.0,0.000299,2]
[312296877,1705761044450,-18300.04696713,0.000299,2]
[312296878,1705761044459,-18300.04696711,0.000299,2]
[312296879,1705761044469,-18300.04696711,0.000299,2]
[312296880,1705761044478,-18300.04696711,0.000299,2]
[312296881,1705761044487,-18300.04696711,0.000299,2]
[312296882,1705761044497,-3308.59507699,0.00029998,2]
[312296883,1705761044507,-505.14833245,0.00029998,2]
[312296884,1705761044517,-155.0,0.00029998,2]
[312296885,1705761044526,-564.32029643,0.00029998,2]
[312296886,1705761044536,-628.6804983,0.00029999,2]
[312296887,1705761044545,-744.35902827,0.00029999,2]
[312296888,1705761044554,-249.86416512,0.00029999,2]
[312296889,1705761044564,-219.72682718,0.00029999,2]
[312296890,1705761044573,-50000.0,0.0003,2]
[312296891,1705761044583,-202970.39680865,0.0003,4]
[312296892,1705761044593,-9641.46795832,0.0003,2]
[312296893,1705761044602,-155.0,0.0003,2]
[312296894,1705761044611,-600.37207933,0.0003,4]
[312296895,1705761044621,-150.0,0.0003,7]
[312296896,1705761044630,-155.0,0.0003,2]
[312296897,1705761044639,-582.7666979,0.0003,2]
[312296898,1705761044649,-1554.02977912,0.0003,4]
[312296899,1705761044659,-580.05377708,0.0003,2]
[312296900,1705761044669,-357.87420369,0.0003,2]
[312296901,1705761044679,-10000.0,0.0003,2]
[312296902,1705761044688,-928.51757217,0.0003,2]
[312296903,1705761044698,-712.0,0.0003,3]
[312296904,1705761044707,-1000.0,0.0003,3]
[312296905,1705761044717,-224.65723185,0.0003,2]
[312296906,1705761044726,-177.807014,0.0003,3]
[312296907,1705761044736,-300.0,0.0003,2]
[312296908,1705761044746,-200.0,0.0003,2]
[312296909,1705761044757,-169819.520849,0.0003,2]
[312296910,1705761044767,-1582.53866229,0.0003,4]
[312296911,1705761044777,-250.0,0.0003,2]
[312296912,1705761044787,-255.4,0.0003,2]
[312296913,1705761044797,-158.22,0.0003,2]
[312296914,1705761044806,-1941.0,0.0003,2]
[312296915,1705761044816,-151.0,0.0003,7]
[312296916,1705761044826,-152.71,0.0003,2]
[312296917,1705761044835,-152.71,0.0003,2]
[312296918,1705761044845,-152.71,0.0003,2]
[312296919,1705761044855,-152.71,0.0003,2]
[312296920,1705761044864,-762.551946,0.0003,2]
[312296921,1705761044874,-3000.0,0.0003,2]
[312296922,1705761044883,-151.0,0.0003,7]
[312296923,1705761044894,-1065.83235698,0.00030004,2]
[312296924,1705761044903,-2164.2197317,0.00030005,2]
[312296925,1705761044913,-1901.2106838,0.00030005,2]
[312296926,1705761044922,-1638.201636,0.00030005,2]
[312296927,1705761044931,-1375.1925881,0.00030005,2]
[312296928,1705761044941,-1112.1835402,0.00030005,2]
[312296929,1705761044951,-849.1744923,0.00030005,2]
[312296930,1705761044961,-2813.8445425,0.00030007,2]
[312296931,1705761044973,-2469.1710359,0.00030007,2]
[312296932,1705761044982,-2124.4975292,0.00030007,2]
[312296933,1705761044992,-1779.8240226,0.00030007,2]
[312296934,1705761045004,-1435.150516,0.00030007,2]
[312296935,1705761045013,-1090.4770094,0.00030007,2]
[312296936,1705761045023,-3308.0712283,0.00030007,2]
[312296937,1705761045032,-2902.8588958,0.00030007,2]
[312296938,1705761045043,-2497.6465633,0.00030007,2]
[312296939,1705761045052,-2092.4342308,0.00030007,2]
[312296940,1705761045061,-1687.2218983,0.00030007,2]
[312296941,1705761045070,-1282.0095658,0.00030007,2]
[312296942,1705761045080,-21448.5241421,0.00030007,2]
[312296943,1705761045089,-18841.9699968,0.00030007,2]
[312296944,1705761045099,-16235.4158516,0.00030007,2]
[312296945,1705761045108,-13628.8617063,0.00030007,2]
[312296946,1705761045118,-11022.3075611,0.00030007,2]
[312296947,1705761045127,-8415.7534158,0.00030007,2]
[312296948,1705761045136,-778.56176708,0.00030028,2]
[312296949,1705761045145,-44903.5187049,0.00030028,2]
[312296950,1705761045155,-39360.1197144,0.00030028,2]
[312296951,1705761045164,-33816.7207238,0.00030028,2]
[312296952,1705761045175,-28273.3217332,0.00030028,2]
[312296953,1705761045185,-22729.9227426,0.00030028,2]
[312296954,1705761045194,-17186.5237521,0.00030028,2]
[312296955,1705761045204,-17829.8208184,0.00030028,2]
[312296956,1705761045214,-15628.7057704,0.00030028,2]
[312296957,1705761045223,-13427.5907225,0.00030028,2]
[312296958,1705761045233,-11226.4756746,0.00030028,2]
[312296959,1705761045242,-9025.3606266,0.00030028,2]
[312296960,1705761045253,-6824.2455787,0.00030028,2]
[312296961,1705761045263,-400.0,0.000301,2]
[312296962,1705761045273,-153.0,0.000301,2]
[312296963,1705761045283,-181.74698734,0.00030108,2]
[312296964,1705761045293,-1996.46,0.00030136,2]
[312296965,1705761045303,-151.45,0.00030137,2]
[312296966,1705761045313,-153.84,0.00030137,2]
[312296967,1705761045322,-155.0,0.00030137,2]
[312296968,1705761045333,-18300.04696711,0.00030346,2]
[312296969,1705761045343,-181.74698734,0.00030348,2]
[312296970,1705761045352,-5000.0,0.0003035,2]
[312296971,1705761045361,-152.10519192,0.00030501,2]
[312296972,1705761045371,-150.63677426,0.00030501,2]
[312296973,1705761045380,-181.74698734,0.00030588,2]
[312296974,1705761045389,-500.0,0.00030802,2]
[312296975,1705761045399,-181.74698734,0.00030829,2]
[312296976,1705761045408,-317.24,0.00030836,2]
[312296977,1705761045418,-200.0,0.00030987,2]
[312296978,1705761045427,-300.0,0.00030987,3]
[312296979,1705761045436,-50000.0,0.00031,2]
[312296980,1705761045445,-229.879764,0.00031,7]
[312296981,1705761045454,-1000.0,0.00031,3]
[312296982,1705761045463,-500.0,0.00031,3]
[312296983,1705761045472,-153.84,0.0003105,2]
[312296984,1705761045482,-181.74698734,0.00031069,2]
[312296985,1705761045491,-209.0,0.00031192,18]
[312296986,1705761045500,-153.0,0.000312,2]
[312296987,1705761045510,-181.74698734,0.00031309,2]
[312296988,1705761045519,-167.62510282,0.0003131,2]
[312296989,1705761045528,-10860.0,0.00031332,5]
[312296990,1705761045537,-492.0,0.00031388,3]
[312296991,1705761045546,-441.48,0.00031435,2]
[312296992,1705761045555,-1092.71253373,0.000315,2]
[312296993,1705761045566,-1996.46,0.00031506,2]
[312296994,1705761045575,-151.45,0.00031507,2]
[312296995,1705761045585,-214.42,0.00031507,2]
[312296996,1705761045594,-155.0,0.00031507,2]
[312296997,1705761045603,-181.74698734,0.00031549,2]
[312296998,1705761045613,-171.11,0.00031644,2]
[312296999,1705761045622,-5965.08633149,0.000317,2]
[312297000,1705761045631,-181.74698734,0.0003179,2]
[312297001,1705761045640,-49109.897442,0.000318,3]
[312297002,1705761045649,-18300.04696711,0.00031835,2]
[312297003,1705761045659,-5000.0,0.0003189,2]
[312297004,1705761045668,-153.84,0.00031963,2]
[312297005,1705761045678,-200.0,0.00031987,3]
[312297006,1705761045687,-300.0,0.00031987,4]
[312297007,1705761045696,-298.08959021,0.00032,4]
[312297008,1705761045705,-13080.03973811,0.00032,4]
[312297009,1705761045714,-1000.0,0.00032,3]
[312297010,1705761045723,-1070.0,0.00032,3]
[312297011,1705761045733,-500.0,0.00032,2]
[312297012,1705761045742,-9258.86998012,0.00032,2]
[312297013,1705761045751,-500.0,0.00032,3]
[312297014,1705761045761,-790.08,0.00032018,2]
[312297015,1705761045770,-181.74698734,0.0003203,2]
[312297016,1705761045779,-150.0,0.00032073,2]
[312297017,1705761045788,-185.0,0.00032199,2]
[312297018,1705761045798,-181.74698734,0.0003227,2]
[312297019,1705761045806,-153.0,0.000323,2]
[312297020,1705761045815,-150.63677426,0.00032337,2]
[312297021,1705761045825,-209.92,0.00032389,2]
[312297022,1705761045834,-657.81618824,0.000325,2]
[312297023,1705761045844,-181.74698734,0.0003251,2]
[312297024,1705761045854,-605.0,0.00032731,3]
[312297025,1705761045863,-181.74698734,0.00032751,2]
[312297026,1705761045872,-303.00214438,0.00032876,7]
[312297027,1705761045882,-500.0,0.00032876,7]
[312297028,1705761045891,-457.66704081,0.00032876,7]
[312297029,1705761045900,-500.0,0.00032876,7]
[312297030,1705761045909,-485.48345124,0.00032876,7]
[312297031,1705761045918,-208.14396979,0.00032876,7]
[312297033,1705761045928,-1996.46,0.00032876,2]
[312297035,1705761045938,-200.0,0.00032876,3]
[312297037,1705761045947,-153.84,0.00032877,2]
[312297039,1705761045957,-150.1,0.00032877,2]
[312297041,1705761045968,-159.89,0.00032877,2]
[312297043,1705761045977,-151.45,0.00032877,2]
[312297045,1705761045987,-1279.36,0.00032877,15]
[312297047,1705761045997,-8166.92,0.00032877,2]
[312297049,1705761046006,-155.0,0.00032877,2]
[312297051,1705761046015,-4028.12084899,0.000329,2]
[312297053,1705761046025,-530.58154133,0.000329,2]
[312297055,1705761046034,-1503.0,0.000329,2]
[312297057,1705761046044,-573.15245813,0.000329,2]
[312297059,1705761046053,-573.15245813,0.000329,2]
[312297061,1705761046062,-573.15245813,0.000329,2]
[312297062,1705761046072,-573.15245813,0.000329,2]
[312297063,1705761046081,-573.15245813,0.000329,2]
[312297064,1705761046091,-573.15245813,0.000329,2]
[312297065,1705761046100,-573.15245813,0.000329,2]
[312297066,1705761046110,-2718.0,0.000329,2]
[312297067,1705761046119,-250.0,0.000329,2]
[312297068,1705761046128,-200.0,0.00032987,6]
[312297069,1705761046138,-300.0,0.00032987,5]
[312297070,1705761046147,-181.74698734,0.00032991,2]
[312297071,1705761046157,-100000.0,0.00033,3]
[312297072,1705761046166,-2000.0,0.00033,5]
[312297073,1705761046176,-1000.0,0.00033,3]
[312297074,1705761046185,-1006.0,0.00033,3]
[312297075,1705761046194,-500.0,0.00033,3]
[312297076,1705761046203,-550.0,0.00033,3]
[312297077,1705761046213,-168.0,0.00033,2]
[312297078,1705761046222,-155.0,0.00033,2]
[312297079,1705761046231,-500.0,0.00033,3]
[312297080,1705761046240,-170.0,0.00033,2]
[312297081,1705761046250,-150.73,0.00033,2]
[312297082,1705761046260,-150.73,0.00033,2]
[312297083,1705761046269,-150.73,0.00033,2]
[312297084,1705761046279,-150.73,0.00033,2]
[312297085,1705761046288,-150.73,0.00033,2]
[312297086,1705761046298,-150.73,0.00033,2]
[312297087,1705761046308,-150.73,0.00033,2]
[312297088,1705761046317,-150.73,0.00033,2]
[312297089,1705761046327,-150.73,0.00033,2]
[312297090,1705761046337,-150.73,0.00033,2]
[312297091,1705761046346,-150.73,0.00033,2]
[312297092,1705761046355,-150.73,0.00033,2]
[312297093,1705761046364,-150.73,0.00033,2]
[312297094,1705761046374,-150.73,0.00033,2]
[312297095,1705761046383,-150.73,0.00033,2]
[312297096,1705761046393,-150.73,0.00033,2]
[312297097,1705761046403,-150.73,0.00033,2]
[312297098,1705761046412,-150.73,0.00033,2]
[312297099,1705761046422,-150.73,0.00033,2]
[312297100,1705761046432,-150.73,0.00033,2]
[312297101,1705761046441,-150.73,0.00033,2]
[312297102,1705761046450,-150.73,0.00033,2]
[312297103,1705761046460,-150.73,0.00033,2]
[312297104,1705761046470,-150.73,0.00033,2]
[312297105,1705761046479,-150.73,0.00033,2]
[312297106,1705761046488,-150.73,0.00033,2]
[312297107,1705761046498,-150.73,0.00033,2]
[312297108,1705761046508,-150.73,0.00033,2]
[312297109,1705761046517,-317.24,0.000331,2]
[312297110,1705761046528,-172.669249,0.00033178,2]
[312297111,1705761046538,-1287.157296,0.00033178,2]
[312297112,1705761046547,-3668.088891,0.00033178,2]
[312297113,1705761046556,-8798.913881,0.00033178,2]
[312297114,1705761046565,-166.625299,0.00033178,2]
[312297115,1705761046574,-1919.531308,0.00033178,2]
[312297116,1705761046584,-2245.831323,0.00033178,2]
[312297117,1705761046593,-941.428893,0.00033178,2]
[312297118,1705761046603,-334.132462,0.00033178,2]
[312297119,1705761046612,-184.611792,0.00033178,2]
[312297120,1705761046621,-181.74698734,0.00033231,2]
[312297121,1705761046630,-1000.0,0.00033309,7]
[312297122,1705761046639,-18300.04696711,0.00033324,2]
[312297123,1705761046649,-153.0,0.000334,2]
[312297124,1705761046659,-158.22,0.000334,2]
[312297125,1705761046669,-158.22,0.000334,2]
[312297126,1705761046678,-152.71,0.000334,2]
[312297127,1705761046837,-152.71,0.000334,2]
[312297128,1705761046866,-152.71,0.000334,2]
[312297129,1705761046875,-152.71,0.000334,2]
[312297130,1705761046884,-152.71,0.000334,2]
[312297131,1705761046894,-152.71,0.000334,2]
[312297132,1705761046903,-152.71,0.000334,2]
[312297133,1705761046913,-152.71,0.000334,2]
[312297134,1705761046921,-200.0,0.00033424,4]
[312297135,1705761046931,-441.48,0.00033453,2]
[312297136,1705761046940,-181.74698734,0.00033471,2]
[312297137,1705761046951,-249.86416512,0.00033499,2]
[312297138,1705761046960,-219.72682718,0.00033499,2]
[312297139,1705761046973,-489.8044188,0.000335,4]
[312297140,1705761046982,-230000.0,0.000335,5]
[312297141,1705761046992,-1935.72,0.000335,2]
[312297142,1705761047002,-1935.72,0.000335,2]
[312297143,1705761047013,-1935.72,0.000335,2]
[312297144,1705761047022,-1935.72,0.000335,2]
[312297145,1705761047032,-1935.72,0.000335,2]
[312297146,1705761047041,-1935.72,0.000335,2]
[312297147,1705761047051,-1935.72,0.000335,2]
[312297148,1705761047060,-1935.72,0.000335,2]
[312297149,1705761047070,-1935.72,0.000335,2]
[312297150,1705761047079,-1935.72,0.000335,2]
[312297151,1705761047088,-1935.72,0.000335,2]
[312297152,1705761047098,-1935.72,0.000335,2]
[312297153,1705761047107,-1935.72,0.000335,2]
[312297154,1705761047116,-1935.72,0.000335,2]
[312297155,1705761047127,-1935.72,0.000335,2]
[312297156,1705761047136,-1935.72,0.000335,2]
[312297157,1705761047146,-1935.72,0.000335,2]
[312297158,1705761047156,-1935.72,0.000335,2]
[312297159,1705761047165,-1935.72,0.000335,2]
[312297160,1705761047174,-1935.72,0.000335,2]
[312297161,1705761047183,-1287.157296,0.00033593,2]
[312297162,1705761047193,-3668.088891,0.00033593,2]
[312297163,1705761047202,-8798.913881,0.00033593,2]
[312297164,1705761047212,-1919.531308,0.00033593,2]
[312297165,1705761047222,-2245.831323,0.00033593,2]
[312297166,1705761047233,-941.428893,0.00033593,2]
[312297167,1705761047242,-334.132462,0.00033593,2]
[312297168,1705761047252,-6848.86152782,0.0003366,2]
[312297169,1705761047262,-181.74698734,0.00033712,2]
[312297170,1705761047271,-3112.27,0.0003378,10]
[312297171,1705761047280,-153.84,0.0003379,2]
[312297172,1705761047290,-3734.73,0.00033942,10]
[312297173,1705761047300,-181.74698734,0.00033952,2]
[312297174,1705761047310,-200.0,0.00033972,5]
[312297175,1705761047319,-200.0,0.00033987,9]
[312297176,1705761047329,-300.0,0.00033987,6]
[312297177,1705761047338,-4481.67,0.00033997,10]
[312297178,1705761047348,-100000.0,0.00034,4]
[312297179,1705761047357,-500.0,0.00034,2]
[312297180,1705761047367,-1000.0,0.00034,4]
[312297181,1705761047376,-506.36803543,0.00034,4]
[312297182,1705761047386,-191.86005573,0.00034,2]
[312297183,1705761047395,-1000.0,0.00034,2]
[312297184,1705761047404,-1000.0,0.00034,4]
[312297185,1705761047413,-1000.0,0.00034,4]
[312297186,1705761047423,-1600.0,0.00034,4]
[312297187,1705761047432,-500.0,0.00034,4]
[312297188,1705761047441,-279.78141392,0.00034,2]
[312297189,1705761047450,-200.04171101,0.00034,2]
[312297190,1705761047460,-500.0,0.00034,3]
[312297191,1705761047469,-3512.0,0.00034,2]
[312297192,1705761047478,-100487.0,0.00034,2]
[312297193,1705761047487,-210.76257549,0.00034,2]
[312297194,1705761047497,-1065.83235698,0.00034005,2]
[312297195,1705761047507,-1287.157296,0.00034007,2]
[312297196,1705761047516,-3668.088891,0.00034007,2]
[312297197,1705761047525,-8798.913881,0.00034007,2]
[312297198,1705761047535,-1919.531308,0.00034007,2]
[312297199,1705761047544,-2245.831323,0.00034007,2]
[312297200,1705761047553,-941.428893,0.00034007,2]
[312297201,1705761047562,-334.132462,0.00034007,2]
[312297202,1705761047571,-209.0,0.00034072,22]
[312297203,1705761047581,-744.0,0.00034131,3]
[312297204,1705761047590,-181.74698734,0.00034192,2]
[312297205,1705761047599,-1000.0,0.000342,2]
[312297206,1705761047608,-1996.46,0.00034246,2]
[312297207,1705761047617,-666.0,0.00034246,2]
[312297208,1705761047627,-151.45,0.00034247,2]
[312297209,1705761047636,-155.0,0.00034247,2]
[312297210,1705761047645,-150.63677426,0.00034284,2]
[312297211,1705761047655,-1287.157296,0.00034422,2]
[312297212,1705761047664,-3668.088891,0.00034422,2]
[312297213,1705761047673,-8798.913881,0.00034422,2]
[312297214,1705761047683,-1919.531308,0.00034422,2]
[312297215,1705761047692,-2245.831323,0.00034422,2]
[312297216,1705761047701,-941.428893,0.00034422,2]
[312297217,1705761047711,-334.132462,0.00034422,2]
[312297218,1705761047720,-181.74698734,0.00034432,2]
[312297219,1705761047729,-740.88009032,0.00034436,6]
[312297220,1705761047738,-740.88009032,0.00034436,6]
[312297221,1705761047747,-740.88009032,0.00034436,6]
[312297222,1705761047755,-740.88009032,0.00034436,6]
[312297223,1705761047765,-249.86416512,0.00034499,2]
[312297224,1705761047775,-219.72682718,0.00034499,2]
[312297225,1705761047784,-4425.51274453,0.000345,2]
[312297226,1705761047793,-1000000.0,0.000345,7]
[312297227,1705761047802,-3293.809034,0.0003452,2]
[312297228,1705761047811,-200.0,0.0003452,6]
[312297229,1705761047821,-155.0,0.00034521,2]
[312297230,1705761047830,-170.0,0.00034521,2]
[312297231,1705761047839,-181.74698734,0.00034673,2]
[312297232,1705761047848,-1988.34,0.000347,2]
[312297233,1705761047859,-153.84,0.00034703,2]
[312297234,1705761047869,-214.42,0.00034703,2]
[312297235,1705761047878,-151.0,0.00034792,2]
[312297236,1705761047887,-152.35,0.00034792,2]
[312297237,1705761047897,-4940.713551,0.00034794,2]
[312297238,1705761047906,-18300.04696711,0.00034813,2]
[312297239,1705761047915,-1287.157296,0.00034837,2]
[312297240,1705761047925,-3668.088891,0.00034837,2]
[312297241,1705761047935,-8798.913881,0.00034837,2]
[312297242,1705761047944,-1919.531308,0.00034837,2]
[312297243,1705761047954,-2245.831323,0.00034837,2]
[312297244,1705761047965,-941.428893,0.00034837,2]
[312297245,1705761047976,-334.132462,0.00034837,2]
[312297246,1705761047985,-166.625299,0.00034837,2]
[312297247,1705761047994,-1065.83235698,0.00034897,2]
[312297248,1705761048005,-249.86416512,0.00034899,2]
[312297249,1705761048014,-219.72682718,0.00034899,2]
[312297250,1705761048023,-8961.38344061,0.000349,4]
[312297251,1705761048034,-505.72988099,0.000349,2]
[312297252,1705761048044,-505.72988094,0.000349,2]
[312297253,1705761048054,-505.72988094,0.000349,2]
[312297254,1705761048063,-505.72988094,0.000349,2]
[312297255,1705761048074,-505.72988094,0.000349,2]
[312297256,1705761048083,-505.72988094,0.000349,2]
[312297257,1705761048092,-512504.97223525,0.000349,5]
[312297258,1705761048102,-181.74698734,0.00034913,2]
[312297259,1705761048111,-6587.618069,0.00034931,2]
[312297260,1705761048121,-718.48,0.0003498,2]
[312297261,1705761048131,-200.0,0.00034987,12]
[312297263,1705761048140,-300.0,0.00034987,7]
[312297265,1705761048149,-100000.0,0.00035,5]
[312297267,1705761048159,-155.0,0.00035,4]
[312297269,1705761048168,-3499.20686713,0.00035,16]
[312297272,1705761048177,-5000.0,0.00035,2]
[312297274,1705761048186,-155.24044688,0.00035,3]
[312297277,1705761048196,-18135.99785605,0.00035,10]
[312297279,1705761048205,-23500.47032796,0.00035,4]
[312297281,1705761048215,-448.27259389,0.00035,4]
[312297283,1705761048224,-615.21134689,0.00035,4]
[312297285,1705761048233,-155.0,0.00035,2]
[312297287,1705761048243,-620.01315922,0.00035,4]
[312297289,1705761048252,-15747.42472386,0.00035,7]
[312297291,1705761048263,-11565.2,0.00035,4]
[312297293,1705761048272,-1000.0,0.00035,5]
[312297294,1705761048281,-1103.05687893,0.00035,14]
[312297295,1705761048291,-500.0,0.00035,5]
[312297296,1705761048300,-3000.0,0.00035,17]
[312297297,1705761048309,-500.0,0.00035,3]
[312297298,1705761048318,-3000.0,0.00035,2]
[312297299,1705761048328,-301.478,0.00035,2]
[312297300,1705761048337,-150.0,0.00035,30]
[312297301,1705761048346,-3000.0,0.0003501,17]
[312297302,1705761048356,-5489.175695,0.0003502,17]
[312297303,1705761048365,-8234.522586,0.00035068,2]
[312297304,1705761048375,-200.0,0.00035068,7]
[312297305,1705761048384,-763.7752539,0.0003507,2]
[312297306,1705761048394,-150.0,0.000351,24]
[312297307,1705761048403,-2011.92,0.000351,2]
[312297308,1705761048412,-358.002829,0.000351,2]
[312297309,1705761048421,-181.74698734,0.00035153,2]
[312297310,1705761048430,-11528.33162,0.00035342,2]
[312297311,1705761048439,-252.198643,0.00035342,14]
[312297312,1705761048449,-5000.0,0.0003535,6]
[312297313,1705761048458,-317.24,0.00035364,2]
[312297314,1705761048468,-740.88009032,0.00035365,7]
[312297315,1705761048477,-181.74698734,0.00035393,2]
[312297316,1705761048486,-500.0,0.00035436,120]
[312297317,1705761048496,-2000.0,0.00035436,30]
[312297318,1705761048506,-2000.0,0.00035436,30]
[312297319,1705761048516,-2000.0,0.00035436,30]
[312297320,1705761048525,-2000.0,0.00035436,30]
[312297321,1705761048534,-2000.0,0.00035436,30]
[312297322,1705761048543,-2000.0,0.00035436,30]
[312297323,1705761048553,-1239.16,0.00035436,30]
[312297324,1705761048562,-300.0,0.00035436,53]
[312297325,1705761048572,-2000.0,0.00035436,2]
[312297326,1705761048581,-5000.19534161,0.00035436,10]
[312297327,1705761048590,-197957.61745332,0.00035436,120]
[312297328,1705761048600,-1847.645274,0.00035436,30]
[312297329,1705761048609,-795.55524904,0.00035436,2]
[312297330,1705761048618,-305.810498,0.00035436,30]
[312297331,1705761048627,-1971.609997,0.00035436,30]
[312297332,1705761048636,-10000.0,0.00035436,30]
[312297333,1705761048645,-1000.0,0.00035436,15]
[312297334,1705761048655,-441.48,0.00035472,2]
[312297336,1705761048664,-915.0,0.00035592,3]
[312297338,1705761048673,-292.797082,0.000356,24]
[312297339,1705761048682,-150.0,0.00035616,2]
[312297340,1705761048692,-300.0,0.00035616,7]
[312297341,1705761048701,-300.0,0.00035616,12]
[312297342,1705761048710,-1996.46,0.00035616,2]
[312297343,1705761048720,-200.0,0.00035616,8]
[312297344,1705761048730,-153.84,0.00035616,2]
[312297345,1705761048739,-151.45,0.00035616,2]
[312297346,1705761048749,-257.67864389,0.00035617,2]
[312297347,1705761048760,-181.74698734,0.00035634,2]
[312297348,1705761048769,-181.74698734,0.00035874,2]
[312297349,1705761048778,-200.0,0.00035987,15]
[312297350,1705761048787,-300.0,0.00035987,8]
[312297351,1705761048797,-1065.83235698,0.00035997,2]
[312297352,1705761048806,-626.86539493,0.00035999,4]
[312297353,1705761048816,-249.86416512,0.00035999,2]
[312297354,1705761048826,-219.72682718,0.00035999,2]
[312297355,1705761048835,-100000.0,0.00036,6]
[312297356,1705761048845,-610444.79999146,0.00036,7]